bitfinex/quotes_SOLUSD_20250424
["timestamp","ask_amount","ask_price","bid_price","bid_amount"]
[1745501022740,13.34,148.85,148.82,18.9086455]
[1745501023443,13.34,148.85,148.82,12.18920317]
[1745501024249,13.34,148.85,148.82,18.90867697]
[1745501024537,32.24746761,148.85,148.79,6.72088177]
[1745501024722,18.90835849,148.83,148.79,12.18920317]
[1745501024917,12.18920317,148.82,148.77,6.72162641]
[1745501025141,12.18920317,148.81,148.77,18.91082958]
[1745501025312,12.18920317,148.81,148.75,6.1996]
[1745501025517,12.18920317,148.81,148.76,18.91116778]
[1745501025836,12.18920317,148.81,148.77,12.18920317]
[1745501026237,12.18920317,148.81,148.76,18.91116778]
[1745501026825,12.18920317,148.81,148.77,12.18920317]
[1745501027443,18.90911637,148.82,148.77,12.18920317]
[1745501027844,18.90911637,148.82,148.76,6.72196461]
[1745501028026,12.18920317,148.81,148.76,18.91116778]
[1745501028341,12.18920317,148.81,148.77,12.18920317]
[1745501028538,18.90922833,148.81,148.77,12.18920317]
[1745501029121,12.18920317,148.81,148.77,12.18920317]
[1745501030848,18.90925765,148.81,148.77,12.18920317]
[1745501032054,12.18920317,148.81,148.77,18.91094209]
[1745501032546,6.71967371,148.82,148.77,18.91094209]
[1745501032719,18.90887688,148.82,148.77,18.91094209]
[1745501033246,12.18920317,148.82,148.78,12.18920317]
[1745501033425,18.9083561,148.83,148.79,12.18920317]
[1745501034131,18.9083561,148.83,148.78,12.18920317]
[1745501034546,12.18920317,148.82,148.77,18.91094209]
[1745501035222,12.18920317,148.81,148.77,18.91094209]
[1745501036652,18.9088493,148.82,148.77,18.91094209]
[1745501038651,18.9088493,148.82,148.78,12.18920317]
[1745501039522,18.9088493,148.82,148.76,6.72223716]
[1745501039523,18.9088493,148.82,148.77,12.18920317]
[1745501040351,12.18920317,148.83,148.79,12.18920317]
[1745501040525,12.18920317,148.82,148.78,12.18920317]
[1745501040727,12.18920317,148.81,148.77,18.91056549]
[1745501042252,25.52920317,148.81,148.77,18.91056549]
[1745501042448,16.79523847,148.86,148.77,18.91056549]
[1745501042449,229.67696841,148.88,148.8,12.18920317]
[1745501042656,229.67696841,148.88,148.78,11.44308265]
[1745501042657,12.18920317,148.87,148.82,12.18920317]
[1745501043156,12.18920317,148.85,148.8,12.18920317]
[1745501043455,12.18920317,148.84,148.8,12.18920317]
[1745501043631,25.52920317,148.83,148.77,6.72136232]
[1745501043822,25.52920317,148.83,148.79,18.90996165]
[1745501043823,13.34,148.83,148.79,18.90996165]
[1745501044027,13.34,148.83,148.79,6.72075848]
[1745501044263,13.34,148.83,148.8,12.18920317]
[1745501045970,13.34,148.83,148.8,18.90930762]
[1745501046554,13.34,148.83,148.8,6.72010445]
[1745501050861,13.34,148.83,148.8,18.90930762]
[1745501051223,13.34,148.83,148.8,6.72010445]
[1745501051429,13.34,148.83,148.8,18.90930762]
[1745501052848,13.34,148.83,148.81,12.18920317]
[1745501053371,13.34,148.83,148.8,18.90930762]
[1745501054380,13.34,148.83,148.82,12.18920317]
[1745501054878,13.34,148.83,148.82,18.90873011]
[1745501055659,12.18920317,148.87,148.82,18.90873011]
[1745501056063,12.18920317,148.86,148.82,6.71952694]
[1745501056260,0.14216157,148.87,148.82,18.90873011]
[1745501056450,12.33136474,148.87,148.82,18.90873011]
[1745501056770,12.18920317,148.86,148.82,6.71952694]
[1745501057251,19.04867999,148.87,148.82,12.18920317]
[1745501059264,19.04867999,148.87,148.83,6.71907545]
[1745501060442,12.18920317,148.86,148.82,6.71937132]
[1745501060942,20.05691208,148.88,148.82,6.71937132]
[1745501061265,12.18920317,148.86,148.82,18.90857449]
[1745501061980,12.18920317,148.86,148.82,6.71937132]
[1745501062967,18.90697032,148.86,148.82,6.71937132]
[1745501064587,12.18920317,148.85,148.8,18.90944248]
[1745501065280,12.18920317,148.84,148.8,18.90944248]
[1745501066850,18.9076568,148.85,148.8,18.90944248]
[1745501068869,12.33136474,148.86,148.81,18.90917948]
[1745501069651,19.04918,148.86,148.81,18.90917948]
[1745501070472,19.04918,148.86,148.78,23.52368387]
[1745501070667,12.18920317,148.85,148.78,23.52368387]
[1745501070883,12.18920317,148.85,148.8,12.18920317]
[1745501071886,18.9074406,148.85,148.8,18.90927547]
[1745501072887,18.9074406,148.85,148.78,23.52368387]
[1745501073089,12.18920317,148.84,148.79,12.18920317]
[1745501073299,12.18920317,148.83,148.79,12.18920317]
[1745501073459,12.18920317,148.83,148.76,12.18920317]
[1745501073460,12.18920317,148.81,148.76,12.18920317]
[1745501073787,12.18920317,148.81,148.77,12.18920317]
[1745501074359,12.33136474,148.82,148.77,18.91059536]
[1745501075369,25.52920317,148.83,148.79,12.18920317]
[1745501075573,13.34,148.83,148.79,12.18920317]
[1745501075771,32.24838099,148.83,148.78,12.18920317]
[1745501076268,12.18920317,148.82,148.78,12.18920317]
[1745501076592,12.18920317,148.82,148.78,18.9103677]
[1745501077972,18.90880607,148.82,148.78,6.72116453]
[1745501078178,12.18920317,148.81,148.78,6.72116453]
[1745501078686,18.90880607,148.82,148.78,6.72116453]
[1745501078876,25.52920317,148.83,148.78,18.9103677]
[1745501079064,13.34,148.83,148.78,18.9103677]
[1745501079268,25.52920317,148.83,148.78,18.9103677]
[1745501079771,13.34,148.83,148.79,12.18920317]
[1745501081169,13.34,148.83,148.79,18.90978735]
[1745501081369,13.34,148.83,148.79,6.72058418]
[1745501081370,25.52920317,148.83,148.79,6.72058418]
[1745501081670,32.24830519,148.83,148.79,6.72058418]
[1745501082121,25.52920317,148.83,148.79,6.72058418]
[1745501083583,32.248296,148.83,148.79,6.72058418]
[1745501084396,25.52920317,148.83,148.79,6.72058418]
[1745501086304,13.34,148.83,148.79,18.90978735]
[1745501087380,25.52920317,148.83,148.79,6.72058418]
[1745501088007,12.18920317,148.82,148.78,6.72115964]
[1745501089687,32.24828929,148.83,148.78,12.18920317]
[1745501089980,12.18920317,148.82,148.76,23.52687258]
[1745501090387,12.18920317,148.82,148.77,12.18920317]
[1745501091504,12.18920317,148.81,148.77,18.91085821]
[1745501091904,12.18920317,148.81,148.77,6.72165504]
[1745501092082,12.18920317,148.8,148.77,6.72165504]
[1745501092709,12.18920317,148.8,148.76,6.72195355]
[1745501093285,12.18920317,148.79,148.75,12.92217094]
[1745501093607,12.18920317,148.79,148.74,13.75820317]
[1745501093811,12.18920317,148.79,148.75,12.18920317]
[1745501095110,12.18920317,148.8,148.75,12.18920317]
[1745501096388,12.18920317,148.8,148.76,6.72223716]
[1745501097301,12.18920317,148.8,148.76,18.91144033]
[1745501099014,12.18920317,148.81,148.77,12.18920317]
[1745501100300,13.34,148.83,148.79,12.18920317]
[1745501100513,13.34,148.83,148.8,12.18920317]
[1745501100814,13.34,148.83,148.79,12.18920317]
[1745501101616,13.34,148.83,148.8,6.7204301]
[1745501103220,25.52920317,148.83,148.8,6.7204301]
[1745501103713,21.64218149,148.87,148.82,12.18920317]
[1745501104019,12.18920317,148.85,148.81,12.18920317]
[1745501105023,12.18920317,148.85,148.82,6.71952694]
[1745501105805,12.18920317,148.85,148.8,6.7204301]
[1745501106010,12.18920317,148.85,148.81,12.18920317]
[1745501107830,21.64218681,148.87,148.82,6.71952694]
[1745501107999,12.18920317,148.85,148.82,6.71952694]
[1745501109025,12.18920317,148.85,148.81,18.90901583]
[1745501110921,12.18920317,148.83,148.77,8.48902429]
[1745501111125,12.18920317,148.82,148.77,18.91098847]
[1745501111307,12.18920317,148.81,148.77,6.7217853]
[1745501111512,12.18920317,148.8,148.76,18.91129087]
[1745501111819,12.18920317,148.8,148.76,6.7220877]
[1745501112005,12.18920317,148.79,148.76,6.7220877]
[1745501113525,12.18920317,148.8,148.76,18.91129087]
[1745501114218,12.18920317,148.81,148.76,18.91129087]
[1745501114627,13.32,148.82,148.78,12.18920317]
[1745501114823,25.50920317,148.82,148.78,12.18920317]
[1745501115022,25.50920317,148.82,148.77,12.18920317]
[1745501115910,25.50920317,148.82,148.78,6.72133351]
[1745501116830,12.18920317,148.81,148.78,6.72133351]
[1745501118431,12.18920317,148.8,148.77,6.7217853]
[1745501121338,12.18920317,148.81,148.77,6.7217853]
[1745501122233,20.03953893,148.82,148.77,6.7217853]
[1745501122437,13.32,148.82,148.77,12.18920317]
[1745501122614,12.18920317,148.81,148.77,12.18920317]
[1745501123014,12.18920317,148.81,148.76,18.91144033]
[1745501123224,12.18920317,148.81,148.76,6.72223716]
[1745501123410,12.18920317,148.8,148.76,6.72223716]
[1745501123616,12.18920317,148.8,148.76,18.91144033]
[1745501124841,20.03965882,148.82,148.76,18.91144033]
[1745501125131,12.18920317,148.8,148.76,18.91144033]
[1745501128939,12.18920317,148.79,148.76,6.72223716]
[1745501129743,12.18920317,148.79,148.75,13.81390317]
[1745501129926,12.18920317,148.79,148.75,6.72249854]
[1745501130128,12.18920317,148.78,148.74,6.7859392]
[1745501130626,12.18920317,148.77,148.74,6.7859392]
[1745501130827,12.18920317,148.77,148.74,0.063]
[1745501131032,12.18920317,148.77,148.74,30.063]
[1745501131540,12.18920317,148.77,148.74,0.063]
[1745501132156,12.18920317,148.75,148.74,0.063]
[1745501133644,13.32,148.76,148.74,0.063]
[1745501136753,25.50920317,148.76,148.74,0.063]
[1745501137326,13.32,148.76,148.74,0.063]
[1745501138025,25.50920317,148.76,148.74,0.063]
[1745501138243,13.32,148.76,148.74,30.063]
[1745501140551,13.32,148.76,148.75,6.72268907]
[1745501141150,13.32,148.76,148.74,36.78599705]
[1745501142042,25.50920317,148.76,148.74,36.78599705]
[1745501142451,25.50920317,148.76,148.74,30.063]
[1745501142653,25.50920317,148.76,148.74,36.78598843]
[1745501143158,25.50920317,148.76,148.74,30.063]
[1745501145656,25.50920317,148.76,148.74,0.063]
[1745501147966,12.18920317,148.75,148.74,0.063]
[1745501148462,25.50920317,148.76,148.74,0.063]
[1745501149559,12.18920317,148.75,148.74,0.063]
[1745501149781,60.94601585,148.75,148.74,0.063]
[1745501150265,12.18920317,148.75,148.74,0.063]
[1745501151073,18.91189224,148.75,148.74,0.063]
[1745501153459,86.46051535,148.75,148.74,0.063]
[1745501156957,67.81086649,148.75,148.74,0.063]
[1745501157345,86.46051535,148.75,148.74,0.063]
[1745501160460,67.81086649,148.75,148.74,0.063]
[1745501160761,86.46051535,148.75,148.74,0.063]
[1745501161545,13.32,148.76,148.74,0.063]
[1745501161856,12.18920317,148.75,148.74,0.063]
[1745501163368,25.50920317,148.76,148.74,0.063]
[1745501164057,12.18920317,148.75,148.74,0.063]
[1745501164261,12.18920317,148.75,148.74,30.063]
[1745501165269,25.50920317,148.76,148.74,30.063]
[1745501166348,12.18920317,148.75,148.74,30.063]
[1745501168574,18.91189224,148.75,148.74,0.063]
[1745501172053,37.70370267,148.75,148.74,0.063]
[1745501172259,86.46051535,148.75,148.74,0.063]
[1745501173990,37.70370267,148.75,148.74,0.063]
[1745501175273,18.91189224,148.75,148.74,0.063]
[1745501177088,12.18920317,148.75,148.74,0.063]
[1745501178185,18.91189224,148.75,148.74,0.063]
[1745501180284,86.46051535,148.75,148.74,0.063]
[1745501181672,37.70370267,148.75,148.74,0.063]
[1745501182868,86.46051535,148.75,148.74,0.063]
[1745501184664,37.70370267,148.75,148.74,0.063]
[1745501185587,18.91189224,148.75,148.74,0.063]
[1745501185787,12.18920317,148.75,148.74,0.063]
[1745501186059,13.32,148.76,148.74,0.063]
[1745501187967,25.50920317,148.76,148.74,0.063]
[1745501188290,12.18920317,148.75,148.74,0.063]
[1745501191689,18.91189224,148.75,148.74,0.063]
[1745501191991,12.18920317,148.75,148.74,0.063]
[1745501193866,13.32,148.76,148.74,0.063]
[1745501196308,12.18920317,148.75,148.74,0.063]
[1745501199896,13.32,148.76,148.74,0.063]
[1745501200077,25.50920317,148.76,148.74,0.063]
[1745501202399,12.18920317,148.75,148.74,0.063]
[1745501203092,18.91189224,148.75,148.74,0.063]
[1745501204180,86.46051535,148.75,148.74,0.063]
[1745501205494,86.46051535,148.75,148.73,0.063]
[1745501205697,12.18920317,148.74,148.73,0.063]
[1745501206396,30.9810136,148.74,148.73,0.063]
[1745501206608,6.72268907,148.75,148.73,0.063]
[1745501206812,12.18920317,148.74,148.73,0.063]
[1745501210095,6.72268907,148.75,148.73,0.063]
[1745501210287,13.46216157,148.76,148.73,0.063]
[1745501210288,12.18920317,148.74,148.73,0.063]
[1745501212482,18.91234422,148.74,148.73,0.063]
[1745501212999,12.18920317,148.74,148.73,0.063]
[1745501214607,18.91234422,148.74,148.73,0.063]
[1745501217511,32.25234422,148.74,148.73,0.063]
[1745501228122,25.52920317,148.74,148.73,0.063]
[1745501229328,13.34,148.74,148.73,0.063]
[1745501230829,25.52920317,148.74,148.73,0.063]
[1745501231036,32.25234422,148.74,148.73,0.063]
[1745501234723,25.52920317,148.74,148.73,0.063]
[1745501236231,32.25234422,148.74,148.73,0.063]
[1745501238341,25.52920317,148.74,148.73,0.063]
[1745501238510,32.25234422,148.74,148.73,0.063]
[1745501239418,51.04415465,148.74,148.73,0.063]
[1745501240637,25.52920317,148.74,148.73,0.063]
[1745501240931,13.34,148.74,148.73,0.063]
[1745501246139,25.50920317,148.78,148.73,12.25220317]
[1745501246344,25.50920317,148.78,148.74,12.18920317]
[1745501246641,13.32,148.78,148.74,12.18920317]
[1745501246936,13.32,148.78,148.76,12.18920317]
[1745501247150,13.32,148.78,148.74,12.18920317]
[1745501247439,12.18920317,148.77,148.73,0.063]
[1745501248332,25.50920317,148.78,148.74,6.72314105]
[1745501249242,25.50920317,148.78,148.74,18.91234422]
[1745501249411,13.32,148.78,148.74,18.91234422]
[1745501252222,13.32,148.78,148.75,12.18920317]
[1745501254756,13.32,148.78,148.73,0.063]
[1745501254943,13.32,148.78,148.75,18.91145028]
[1745501255341,13.32,148.78,148.75,6.72224711]
[1745501255543,32.23067365,148.78,148.73,0.063]
[1745501255737,32.23067365,148.78,148.73,12.25220317]
[1745501256237,25.50920317,148.78,148.74,12.18920317]
[1745501256944,32.23057037,148.78,148.74,18.91232349]
[1745501257143,18.79181043,148.77,148.73,0.063]
[1745501257347,12.18920317,148.74,148.73,0.063]
[1745501257946,12.18920317,148.75,148.73,0.063]
[1745501258351,12.18920317,148.76,148.73,6.78654686]
[1745501259543,12.18920317,148.76,148.73,0.063]
[1745501260458,12.18920317,148.75,148.73,0.063]
[1745501260630,25.50920317,148.78,148.73,12.25220317]
[1745501260950,13.32,148.78,148.74,12.18920317]
[1745501261154,13.32,148.78,148.74,18.91192122]
[1745501262727,25.50920317,148.78,148.74,6.72271805]
[1745501265364,25.50920317,148.78,148.74,18.91192122]
[1745501265657,13.32,148.78,148.74,18.91192122]
[1745501269968,13.32,148.78,148.73,0.063]
[1745501270144,13.32,148.78,148.74,12.18920317]
[1745501271556,13.32,148.78,148.75,6.72268907]
[1745501272337,13.32,148.78,148.75,18.91189224]
[1745501274079,25.50920317,148.78,148.74,18.91214549]
[1745501274254,25.50920317,148.78,148.74,6.72294232]
[1745501275679,12.18920317,148.76,148.73,6.78657203]
[1745501276180,12.18920317,148.76,148.73,0.063]
[1745501280389,13.32,148.78,148.75,12.18920317]
[1745501281183,13.32,148.78,148.76,12.18920317]
[1745501281394,0.03,148.8,148.77,12.18920317]
[1745501281682,0.03,148.8,148.79,12.18920317]
[1745501282265,0.03,148.8,148.79,18.91008494]
[1745501282777,0.03,148.8,148.78,18.91033118]
[1745501284983,0.03,148.8,148.79,12.18920317]
[1745501286285,0.03,148.8,148.79,18.91008494]
[1745501289186,0.03,148.8,148.79,12.18920317]
[1745501290083,0.03,148.8,148.79,18.91008494]
[1745501290590,0.03,148.8,148.78,18.91034115]
[1745501291081,0.03,148.8,148.78,12.18920317]
[1745501291775,0.03,148.8,148.77,12.18920317]
[1745501293390,0.03,148.8,148.77,18.91093026]
[1745501293588,0.03,148.8,148.78,12.18920317]
[1745501294688,0.03,148.8,148.78,18.91050443]
[1745501295604,0.03,148.8,148.79,12.18920317]
[1745501295975,0.03,148.8,148.78,18.91050443]
[1745501298294,0.03,148.8,148.79,12.18920317]
[1745501299999,0.03,148.8,148.79,18.91008494]
[1745501305308,0.03,148.8,148.79,12.18920317]
[1745501305491,0.03,148.8,148.78,18.91032179]
[1745501308709,0.03,148.8,148.78,18.91032179]
[1745501310319,0.03,148.8,148.79,12.18920317]
[1745501312712,0.03,148.8,148.79,18.91008494]
[1745501313499,0.03,148.8,148.79,12.18920317]
[1745501314511,0.03,148.8,148.79,18.91008494]
[1745501316095,0.03,148.8,148.79,12.18920317]
[1745501316812,0.03,148.8,148.79,18.91008494]
[1745501320703,0.03,148.8,148.79,20.25390496]
[1745501321422,0.03,148.8,148.79,18.91008494]
[1745501331021,0.03,148.8,148.79,12.18920317]
[1745501331202,0.03,148.8,148.78,12.18920317]
[1745501331936,0.03,148.8,148.79,12.18920317]
[1745501332932,0.03,148.8,148.79,18.91008494]
[1745501333329,0.03,148.8,148.79,12.18920317]
[1745501334424,0.03,148.8,148.79,18.91008494]
[1745501340843,0.03,148.8,148.79,20.2540355]
[1745501343643,1e-08,148.8,148.79,20.2540355]
[1745501345318,1e-08,148.8,148.79,46.2540355]
[1745501357937,1e-08,148.8,148.79,44.91008494]
[1745501363662,1e-08,148.8,148.79,6.72088177]
[1745501363961,1e-08,148.8,148.79,18.91008494]
[1745501364878,1e-08,148.8,148.79,12.18920317]
[1745501365167,1e-08,148.8,148.76,18.91144033]
[1745501366063,1e-08,148.8,148.77,12.18920317]
[1745501367662,1e-08,148.8,148.77,18.91088452]
[1745501369759,1e-08,148.8,148.77,6.72168135]
[1745501369951,1e-08,148.8,148.78,12.18920317]
[1745501370958,1e-08,148.8,148.74,23.53099367]
[1745501370959,1e-08,148.8,148.74,16.80785262]
[1745501371164,1e-08,148.8,148.78,12.18920317]
[1745501372386,1e-08,148.8,148.77,6.72162695]
[1745501372567,1e-08,148.8,148.77,18.91083012]
[1745501376975,1e-08,148.8,148.78,12.18920317]
[1745501377680,1e-08,148.8,148.77,12.18920317]
[1745501378779,1e-08,148.8,148.77,18.91088306]
[1745501379186,12.18920318,148.8,148.76,12.18920317]
[1745501379364,12.18920318,148.8,148.76,18.91143456]
[1745501380071,1e-08,148.8,148.76,18.91143456]
[1745501380273,1e-08,148.8,148.77,12.18920317]
[1745501380784,1e-08,148.8,148.77,18.9105718]
[1745501381489,1e-08,148.8,148.77,12.18920317]
[1745501381682,1e-08,148.8,148.76,12.18920317]
[1745501382574,12.18920318,148.8,148.76,12.18920317]
[1745501382873,18.90979668,148.8,148.76,12.18920317]
[1745501383069,18.90979668,148.8,148.75,18.91165651]
[1745501383582,12.18920317,148.77,148.73,0.063]
[1745501383784,25.48920317,148.77,148.73,0.063]
[1745501384089,25.48920317,148.77,148.73,18.97575033]
[1745501384289,13.3,148.77,148.73,18.97575033]
[1745501386288,13.3,148.77,148.74,12.18920317]
[1745501386980,13.3,148.77,148.75,6.72268907]
[1745501387286,13.3,148.77,148.74,18.91214598]
[1745501388592,13.3,148.77,148.75,12.18920317]
[1745501388772,13.3,148.77,148.74,18.91214598]
[1745501389377,13.3,148.77,148.74,6.72294281]
[1745501391065,25.48920317,148.77,148.74,6.72294281]
[1745501391496,25.48920317,148.77,148.73,6.78652324]
[1745501391672,12.18920317,148.76,148.73,6.78652324]
[1745501392411,25.48920317,148.77,148.73,6.78652324]
[1745501393794,25.48920317,148.77,148.73,18.97572641]
[1745501394298,13.3,148.77,148.73,18.97572641]
[1745501395594,25.48920317,148.77,148.73,18.97572641]
[1745501397501,13.3,148.77,148.73,18.97572641]
[1745501398595,13.3,148.77,148.74,12.18920317]
[1745501398900,13.3,148.77,148.75,12.18920317]
[1745501399102,13.3,148.77,148.74,12.18920317]
[1745501399676,13.3,148.77,148.75,12.18920317]
[1745501400194,13.3,148.77,148.74,12.18920317]
[1745501400373,13.3,148.77,148.74,6.72295957]
[1745501400571,13.3,148.77,148.73,0.063]
[1745501400572,25.48920317,148.77,148.73,0.063]
[1745501400777,13.3,148.77,148.74,12.18920317]
[1745501400971,13.3,148.77,148.75,12.18920317]
[1745501401485,13.3,148.77,148.76,12.18920317]
[1745501401691,1e-08,148.8,148.76,12.18920317]
[1745501401894,1e-08,148.8,148.79,12.18920317]
[1745501402492,1e-08,148.8,148.79,20.25380903]
[1745501403209,1e-08,148.8,148.79,18.91008494]
[1745501403702,1e-08,148.8,148.79,20.25401707]
[1745501404005,1e-08,148.8,148.79,18.91008494]
[1745501405393,1e-08,148.8,148.74,18.15083339]
[1745501405583,12.18920318,148.8,148.75,12.18920317]
[1745501405787,13.30000001,148.8,148.76,12.18920317]
[1745501406097,0.03,148.84,148.79,60.94601585]
[1745501406413,0.03,148.86,148.83,20.03960317]
[1745501406704,0.03,148.89,148.83,20.03960317]
[1745501406705,0.03,148.89,148.88,26.0]
[1745501406926,0.03,148.89,148.88,38.18920317]
[1745501407084,0.03,148.93,148.89,38.18920317]
[1745501407286,0.03,148.93,148.86,27.34315739]
[1745501407508,0.03,148.93,148.89,12.18920317]
[1745501408080,0.03,148.93,148.89,60.94601585]
[1745501408286,0.03,148.93,148.86,37.40644147]
[1745501408593,0.03,148.93,148.89,18.90557095]
[1745501408806,0.03,148.93,148.89,6.71636778]
[1745501409111,0.03,148.93,148.92,12.18920317]
[1745501409297,0.03,148.93,148.89,6.71636778]
[1745501409616,0.03,148.93,148.92,12.18920317]
[1745501410126,0.03,148.93,148.89,8.05955375]
[1745501410286,0.03,148.93,148.91,12.18920317]
[1745501410488,13.33,148.93,148.92,12.18920317]
[1745501410689,0.03,148.93,148.92,18.90421794]
[1745501411211,0.03,148.93,148.89,42.79091947]
[1745501411391,0.03,148.93,148.92,12.18920317]
[1745501412412,0.03,148.93,148.88,6.71681891]
[1745501412605,13.3,148.92,148.88,6.71681891]
[1745501412921,13.3,148.92,148.9,12.18920317]
[1745501413213,13.3,148.92,148.91,12.18920317]
[1745501413411,0.03,148.93,148.91,12.18920317]
[1745501413587,0.03,148.93,148.92,12.18920317]
[1745501413986,0.03,148.95,148.94,26.0]
[1745501414216,0.03,148.95,148.94,39.5317159]
[1745501414386,0.03,148.95,148.94,88.28852858]
[1745501414590,13.6,148.97,148.94,95.00264164]
[1745501414785,10.54741367,149.0,148.96,60.94601585]
[1745501415008,10.54741367,149.0,148.96,48.75681268]
[1745501415407,10.54741367,149.0,148.94,6.71411306]
[1745501415810,10.54741367,149.0,148.97,12.18920317]
[1745501416129,18.64964886,148.99,148.98,12.18920317]
[1745501416330,32.24964886,148.99,148.94,6.71411306]
[1745501416484,32.24964886,148.99,148.95,12.18920317]
[1745501416690,32.24964886,148.99,148.96,12.18920317]
[1745501417434,32.24964886,148.99,148.93,13.9920065]
[1745501417915,18.64964886,148.97,148.93,7.27759623]
[1745501418118,18.79181043,148.98,148.94,12.18920317]
[1745501418427,0.14216157,148.96,148.93,19.4667994]
[1745501418599,0.14216157,148.97,148.93,19.4667994]
[1745501418800,30.9810136,148.97,148.93,19.4667994]
[1745501419103,44.43885203,148.96,148.92,12.18920317]
[1745501419311,51.17891464,148.96,148.92,18.92926578]
[1745501419513,18.64964886,148.96,148.94,18.92926578]
[1745501419819,13.6,148.96,148.95,18.92926578]
[1745501420000,18.64964886,148.99,148.95,18.92926578]
[1745501420206,13.6,149.01,148.98,18.92926578]
[1745501420411,13.6,149.01,148.92,33.27919216]
[1745501420412,13.6,149.01,148.99,18.92926578]
[1745501421111,13.6,149.01,148.98,18.92926578]
[1745501421309,18.64964886,149.0,148.95,6.71363911]
[1745501421507,18.64964886,148.98,148.93,6.71456388]
[1745501421704,18.92926578,148.97,148.93,18.92926578]
[1745501421914,51.17891464,148.96,148.92,26.20845794]
[1745501422190,32.24964886,148.96,148.92,26.20845794]
[1745501422393,51.17891464,148.96,148.92,7.27919216]
[1745501422604,37.57891464,148.94,148.92,7.27919216]
[1745501423007,37.72107621,148.93,148.84,1.5622]
[1745501423202,18.92926578,148.9,148.85,18.92926578]
[1745501423413,18.92926578,148.9,148.86,18.92926578]
[1745501423604,18.92926578,148.9,148.85,18.92926578]
[1745501423813,37.57891464,148.9,148.85,18.92926578]
[1745501424021,37.57891464,148.9,148.86,18.92926578]
[1745501424427,13.6,148.91,148.87,18.92926578]
[1745501424725,37.57891464,148.9,148.85,18.92926578]
[1745501425310,37.57891464,148.9,148.84,8.28050917]
[1745501425517,32.52926578,148.91,148.86,18.92926578]
[1745501425713,13.6,148.91,148.88,18.92926578]
[1745501425915,32.52926578,148.91,148.86,18.92926578]
[1745501426111,18.92926578,148.9,148.85,18.92926578]
[1745501426324,37.57891464,148.9,148.85,18.92926578]
[1745501427047,18.92926578,148.89,148.85,18.92926578]
[1745501427344,37.57891464,148.9,148.85,25.64724757]
[1745501427541,13.6,148.91,148.87,18.92926578]
[1745501427709,32.52926578,148.91,148.86,18.92926578]
[1745501427910,32.52926578,148.91,148.87,18.92926578]
[1745501428130,32.52926578,148.91,148.88,18.92926578]
[1745501428131,13.6,148.91,148.88,18.92926578]
[1745501428332,32.52926578,148.91,148.85,6.71798179]
[1745501428538,32.52926578,148.91,148.87,18.92926578]
[1745501428743,32.52926578,148.91,148.86,44.92926578]
[1745501428939,13.6,148.91,148.88,18.92926578]
[1745501429312,13.6,148.91,148.86,32.71739338]
[1745501429637,18.64964886,148.94,148.89,18.92926578]
[1745501429840,13.6,148.93,148.9,18.92926578]
[1745501430137,13.6,148.93,148.92,18.92926578]
[1745501430324,13.6,148.97,148.92,18.92926578]
[1745501430525,13.6,148.97,148.93,18.92926578]
[1745501430924,50.59488087,149.19,148.92,33.24426901]
[1745501430925,13.6,149.03,148.96,25.64242739]
[1745501431122,32.52926578,149.03,148.98,18.92926578]
[1745501431328,32.52926578,149.03,148.99,18.92926578]
[1745501431329,13.6,149.03,148.99,18.92926578]
[1745501431658,32.52926578,149.03,148.96,6.71316161]
[1745501431810,32.52926578,149.03,148.98,18.92926578]
[1745501432012,18.92926578,149.02,148.98,18.92926578]
[1745501432343,18.64964886,149.02,148.98,18.92926578]
[1745501432907,18.92926578,149.01,148.93,27.34233234]
[1745501433128,18.92926578,148.98,148.92,13.52226901]
[1745501433450,25.36015751,149.02,148.97,18.92926578]
[1745501433451,0.14216157,149.02,148.97,18.92926578]
[1745501433744,37.72107621,149.02,148.98,18.92926578]
[1745501433930,13.6,149.03,148.99,18.92926578]
[1745501434516,32.52926578,149.03,148.98,18.92926578]
[1745501434827,39.23951441,149.03,148.98,18.92926578]
[1745501435011,18.92926578,149.0,148.96,26.0]
[1745501435226,18.92926578,148.99,148.94,18.92926578]
[1745501435539,18.92926578,148.99,148.95,18.92926578]
[1745501435746,18.92926578,149.0,148.95,18.92926578]
[1745501436046,18.92926578,148.98,148.93,18.92926578]
[1745501436228,32.52926578,148.98,148.94,18.92926578]